[Event "Titled Tuesday Blitz May 2 Early 2023"]
[White "Amitpal, Singh"]
[Black "Prudnykova, Olga"]
[WhiteFideId "5012899"]
[BlackFideId "14121093"]
[WhiteElo "2107"]
[BlackElo "2113"]
[Result "1-0"]
[Round "04"]
[TimeControl "180+2"]
[Date "2023.05.02"]
[WhiteClock "0:00:06"]
[BlackClock "0:00:01"]

1. e4 {[%clk 0:02:59]}  c5 {[%clk 0:02:59]} 2. Nf3 {[%clk 0:02:56]}  Nf6 {[%clk 0:02:59]} 3. Nc3 {[%clk 0:02:50]}  e6 {[%clk 0:02:56]} 4. e5 {[%clk 0:02:43]}  Nd5 {[%clk 0:02:56]} 5. d4 {[%clk 0:02:39]}  Nc6 {[%clk 0:02:16]} 6. Nxd5 {[%clk 0:02:29]}  exd5 {[%clk 0:02:15]} 7. c3 {[%clk 0:02:29]}  cxd4 {[%clk 0:02:13]} 8. cxd4 {[%clk 0:02:30]}  Bb4+ {[%clk 0:02:13]} 9. Bd2 {[%clk 0:02:29]}  Bxd2+ {[%clk 0:02:13]} 10. Qxd2 {[%clk 0:02:30]}  O-O {[%clk 0:02:12]} 11. Bd3 {[%clk 0:02:29]}  d6 {[%clk 0:02:10]} 12. O-O {[%clk 0:02:00]}  Bg4 {[%clk 0:02:06]} 13. Ng5 {[%clk 0:01:59]}  h6 {[%clk 0:02:05]} 14. Nh7 {[%clk 0:01:55]}  Re8 {[%clk 0:01:59]} 15. Qf4 {[%clk 0:01:55]}  dxe5 {[%clk 0:01:42]} 16. Qxg4 {[%clk 0:01:44]}  e4 {[%clk 0:01:41]} 17. Bb5 {[%clk 0:01:23]}  Kxh7 {[%clk 0:01:36]} 18. Rac1 {[%clk 0:01:18]}  Re6 {[%clk 0:01:33]} 19. Bxc6 {[%clk 0:01:16]}  bxc6 {[%clk 0:01:32]} 20. Rc3 {[%clk 0:01:13]}  Qb6 {[%clk 0:01:13]} 21. Rg3 {[%clk 0:01:01]}  Qxd4 {[%clk 0:01:05]} 22. h4 {[%clk 0:00:50]}  Rg6 {[%clk 0:00:56]} 23. Qf5 {[%clk 0:00:49]}  Qf6 {[%clk 0:00:56]} 24. Qd7 {[%clk 0:00:37]}  Rd8 {[%clk 0:00:40]} 25. Qxa7 {[%clk 0:00:34]}  Qxh4 {[%clk 0:00:37]} 26. Qxf7 {[%clk 0:00:29]}  Rxg3 {[%clk 0:00:37]} 27. fxg3 {[%clk 0:00:29]}  Qxg3 {[%clk 0:00:36]} 28. Qf5+ {[%clk 0:00:30]}  Qg6 {[%clk 0:00:36]} 29. Qf4 {[%clk 0:00:28]}  d4 {[%clk 0:00:28]} 30. Qc7 {[%clk 0:00:28]}  Rd5 {[%clk 0:00:19]} 31. Rf8 {[%clk 0:00:16]}  e3 {[%clk 0:00:16]} 32. Qc8 {[%clk 0:00:11]}  Qb1+ {[%clk 0:00:16]} 33. Kh2 {[%clk 0:00:11]}  Rh5+ {[%clk 0:00:15]} 34. Kg3 {[%clk 0:00:11]}  Qe1+ {[%clk 0:00:14]} 35. Kf3 {[%clk 0:00:11]}  Qf1+ {[%clk 0:00:09]} 36. Ke4 {[%clk 0:00:11]}  Qxg2+ {[%clk 0:00:09]} 37. Kd3 {[%clk 0:00:11]}  Qd2+ {[%clk 0:00:08]} 38. Kc4 {[%clk 0:00:11]}  Re5 {[%clk 0:00:01]} 39. Rh8+ {[%clk 0:00:07]}  Kg6 {[%clk 0:00:02]} 40. Qxc6+ {[%clk 0:00:08]}  Kf5 {[%clk 0:00:01]} 41. Qd7+ {[%clk 0:00:07]}  Ke4 {[%clk 0:00:01]} 42. Qg4# {[%clk 0:00:06]} 1-0


[Site "https://www.chess.com"]

[Event "Titled Tuesday Blitz May 2 Early 2023"]
[White "Larina, Maria"]
[Black "Arnold, Ken"]
[WhiteFideId "24113182"]
[BlackFideId "2056836"]
[WhiteElo "1848"]
[BlackElo "2355"]
[Result "0-1"]
[Round "04"]
[TimeControl "180+2"]
[Date "2023.05.02"]
[WhiteClock "0:00:01"]
[BlackClock "0:00:23"]

1. e4 {[%clk 0:03:00]}  c6 {[%clk 0:02:59]} 2. d4 {[%clk 0:03:00]}  d5 {[%clk 0:03:00]} 3. f3 {[%clk 0:03:01]}  dxe4 {[%clk 0:02:59]} 4. fxe4 {[%clk 0:03:01]}  e5 {[%clk 0:03:00]} 5. Nf3 {[%clk 0:03:02]}  Bg4 {[%clk 0:03:00]} 6. Bc4 {[%clk 0:03:02]}  Nd7 {[%clk 0:03:00]} 7. O-O {[%clk 0:02:57]}  Ngf6 {[%clk 0:03:00]} 8. c3 {[%clk 0:02:48]}  Bh5 {[%clk 0:02:59]} 9. Qe1 {[%clk 0:02:45]}  Bd6 {[%clk 0:02:53]} 10. Qg3 {[%clk 0:02:18]}  Bg6 {[%clk 0:02:52]} 11. Nbd2 {[%clk 0:02:16]}  Qe7 {[%clk 0:02:49]} 12. Re1 {[%clk 0:01:51]}  O-O {[%clk 0:02:48]} 13. Qh4 {[%clk 0:01:25]}  b5 {[%clk 0:02:40]} 14. Bd3 {[%clk 0:01:23]}  Rfe8 {[%clk 0:02:36]} 15. Nf1 {[%clk 0:01:10]}  Nh5 {[%clk 0:02:16]} 16. Qxe7 {[%clk 0:01:02]}  Rxe7 {[%clk 0:02:15]} 17. Bg5 {[%clk 0:00:42]}  Nhf6 {[%clk 0:01:55]} 18. Ng3 {[%clk 0:00:37]}  Rae8 {[%clk 0:01:50]} 19. Rad1 {[%clk 0:00:12]}  exd4 {[%clk 0:01:45]} 20. Nxd4 {[%clk 0:00:10]}  Bxg3 {[%clk 0:01:41]} 21. hxg3 {[%clk 0:00:07]}  Ne5 {[%clk 0:01:41]} 22. Bxf6 {[%clk 0:00:05]}  gxf6 {[%clk 0:01:37]} 23. Nf5 {[%clk 0:00:05]}  Bxf5 {[%clk 0:01:37]} 24. exf5 {[%clk 0:00:01]}  Rd8 {[%clk 0:01:28]} 25. Bc2 {[%clk 0:00:01]}  Red7 {[%clk 0:01:22]} 26. Rxd7 {[%clk 0:00:01]}  Rxd7 {[%clk 0:01:21]} 27. Re2 {[%clk 0:00:01]}  Kf8 {[%clk 0:01:20]} 28. Be4 {[%clk 0:00:01]}  Ke7 {[%clk 0:01:17]} 29. Kh2 {[%clk 0:00:02]}  a5 {[%clk 0:01:06]} 30. Kh3 {[%clk 0:00:03]}  Kf8 {[%clk 0:01:05]} 31. a3 {[%clk 0:00:03]}  Kg7 {[%clk 0:01:04]} 32. g4 {[%clk 0:00:04]}  h6 {[%clk 0:01:04]} 33. Kg3 {[%clk 0:00:04]}  Rd1 {[%clk 0:01:01]} 34. Kf4 {[%clk 0:00:04]}  c5 {[%clk 0:00:59]} 35. g3 {[%clk 0:00:04]}  b4 {[%clk 0:00:57]} 36. axb4 {[%clk 0:00:04]}  axb4 {[%clk 0:00:56]} 37. cxb4 {[%clk 0:00:04]}  cxb4 {[%clk 0:00:57]} 38. Ke3 {[%clk 0:00:04]}  Rg1 {[%clk 0:00:54]} 39. Kf2 {[%clk 0:00:04]}  Rd1 {[%clk 0:00:44]} 40. Rc2 {[%clk 0:00:03]}  Nxg4+ {[%clk 0:00:42]} 41. Kf3 {[%clk 0:00:04]}  Ne5+ {[%clk 0:00:40]} 42. Ke2 {[%clk 0:00:04]}  Rd4 {[%clk 0:00:40]} 43. Bb7 {[%clk 0:00:03]}  Rd7 {[%clk 0:00:34]} 44. Be4 {[%clk 0:00:02]}  Re7 {[%clk 0:00:34]} 45. Ke3 {[%clk 0:00:01]}  Ra7 {[%clk 0:00:29]} 46. Kf4 {[%clk 0:00:01]}  Ra2 {[%clk 0:00:27]} 47. Bg2 {[%clk 0:00:01]}  Rxb2 {[%clk 0:00:23]} 0-1


[Site "https://www.chess.com"]

[Event "Titled Tuesday Blitz May 2 Early 2023"]
[White "Horak, Martin"]
[Black "Kuchava, Ana"]
[WhiteFideId "367095"]
[BlackFideId "13605348"]
[WhiteElo "2091"]
[BlackElo "2001"]
[Result "1-0"]
[Round "04"]
[TimeControl "180+2"]
[Date "2023.05.02"]
[WhiteClock "0:00:14"]
[BlackClock "0:00:01"]

1. e4 {[%clk 0:03:00]}  c5 {[%clk 0:02:58]} 2. Nf3 {[%clk 0:03:00]}  d6 {[%clk 0:02:57]} 3. d4 {[%clk 0:03:01]}  cxd4 {[%clk 0:02:57]} 4. Nxd4 {[%clk 0:03:02]}  Nf6 {[%clk 0:02:58]} 5. Nc3 {[%clk 0:03:02]}  Nc6 {[%clk 0:02:58]} 6. f4 {[%clk 0:03:02]}  g6 {[%clk 0:02:52]} 7. Nf3 {[%clk 0:03:01]}  Bg7 {[%clk 0:02:52]} 8. Bd3 {[%clk 0:03:01]}  O-O {[%clk 0:02:47]} 9. O-O {[%clk 0:03:02]}  a6 {[%clk 0:02:33]} 10. Qe1 {[%clk 0:03:02]}  b5 {[%clk 0:02:27]} 11. a3 {[%clk 0:03:00]}  Bb7 {[%clk 0:02:11]} 12. Qh4 {[%clk 0:03:00]}  b4 {[%clk 0:02:11]} 13. axb4 {[%clk 0:02:58]}  Nxb4 {[%clk 0:02:12]} 14. f5 {[%clk 0:02:48]}  Nxd3 {[%clk 0:01:48]} 15. cxd3 {[%clk 0:02:48]}  Qb6+ {[%clk 0:01:15]} 16. Kh1 {[%clk 0:02:47]}  Rac8 {[%clk 0:00:57]} 17. Ng5 {[%clk 0:02:15]}  Qd4 {[%clk 0:00:36]} 18. fxg6 {[%clk 0:01:56]}  fxg6 {[%clk 0:00:36]} 19. Qh3 {[%clk 0:01:42]}  Rxc3 {[%clk 0:00:15]} 20. bxc3 {[%clk 0:01:34]}  Qxc3 {[%clk 0:00:16]} 21. Rb1 {[%clk 0:01:26]}  Bc8 {[%clk 0:00:16]} 22. Qe3 {[%clk 0:01:14]}  Bd7 {[%clk 0:00:09]} 23. Bb2 {[%clk 0:01:11]}  Qc2 {[%clk 0:00:06]} 24. Rfc1 {[%clk 0:01:05]}  Qa4 {[%clk 0:00:06]} 25. h3 {[%clk 0:00:57]}  Bb5 {[%clk 0:00:04]} 26. Ne6 {[%clk 0:00:51]}  Rb8 {[%clk 0:00:03]} 27. Nxg7 {[%clk 0:00:50]}  Kxg7 {[%clk 0:00:03]} 28. e5 {[%clk 0:00:47]}  dxe5 {[%clk 0:00:02]} 29. Bxe5 {[%clk 0:00:45]}  Rb7 {[%clk 0:00:02]} 30. Rf1 {[%clk 0:00:33]}  Rd7 {[%clk 0:00:02]} 31. Rbd1 {[%clk 0:00:21]}  Qh4 {[%clk 0:00:01]} 32. Rf4 {[%clk 0:00:15]}  Qh5 {[%clk 0:00:01]} 33. Rd2 {[%clk 0:00:14]} 1-0


[Site "https://www.chess.com"]

[Event "Titled Tuesday Blitz May 2 Early 2023"]
[White "Rios Escobar, Adan"]
[Black "Ramadoss, Ashokkumar"]
[WhiteFideId "3403645"]
[BlackFideId "5040990"]
[WhiteElo "2234"]
[BlackElo "2110"]
[Result "1-0"]
[Round "04"]
[TimeControl "180+2"]
[Date "2023.05.02"]
[WhiteClock "0:00:08"]
[BlackClock "0:00:33"]

1. d4 {[%clk 0:02:50]}  Nf6 {[%clk 0:02:59]} 2. g3 {[%clk 0:02:50]}  g6 {[%clk 0:02:57]} 3. Bg2 {[%clk 0:02:50]}  Bg7 {[%clk 0:02:58]} 4. e4 {[%clk 0:02:51]}  d6 {[%clk 0:02:57]} 5. Ne2 {[%clk 0:02:51]}  O-O {[%clk 0:02:58]} 6. O-O {[%clk 0:02:52]}  e5 {[%clk 0:02:58]} 7. Nbc3 {[%clk 0:02:52]}  Nc6 {[%clk 0:02:54]} 8. dxe5 {[%clk 0:02:53]}  dxe5 {[%clk 0:02:52]} 9. Bg5 {[%clk 0:02:53]}  Be6 {[%clk 0:02:50]} 10. Nd5 {[%clk 0:02:52]}  Bxd5 {[%clk 0:02:42]} 11. exd5 {[%clk 0:02:53]}  Ne7 {[%clk 0:02:41]} 12. c4 {[%clk 0:02:51]}  h6 {[%clk 0:02:41]} 13. Bxf6 {[%clk 0:02:46]}  Bxf6 {[%clk 0:02:42]} 14. c5 {[%clk 0:02:46]}  Qd7 {[%clk 0:02:26]} 15. Qb3 {[%clk 0:02:25]}  Rab8 {[%clk 0:02:14]} 16. Rad1 {[%clk 0:02:16]}  Nf5 {[%clk 0:02:12]} 17. a4 {[%clk 0:02:06]}  b6 {[%clk 0:02:01]} 18. c6 {[%clk 0:01:44]}  Qe7 {[%clk 0:01:55]} 19. Rfe1 {[%clk 0:01:27]}  Bg7 {[%clk 0:01:51]} 20. h4 {[%clk 0:01:24]}  h5 {[%clk 0:01:47]} 21. Be4 {[%clk 0:01:16]}  Nd6 {[%clk 0:01:47]} 22. Bb1 {[%clk 0:01:17]}  f5 {[%clk 0:01:47]} 23. Nf4 {[%clk 0:01:13]}  Qf6 {[%clk 0:01:37]} 24. Ne6 {[%clk 0:01:10]}  Rf7 {[%clk 0:01:38]} 25. Qb4 {[%clk 0:01:02]}  Bf8 {[%clk 0:01:17]} 26. Qc3 {[%clk 0:00:58]}  e4 {[%clk 0:00:40]} 27. Qxf6 {[%clk 0:00:57]}  Rxf6 {[%clk 0:00:41]} 28. Nxc7 {[%clk 0:00:57]}  Bh6 {[%clk 0:00:34]} 29. Ne6 {[%clk 0:00:50]}  Nc4 {[%clk 0:00:32]} 30. b4 {[%clk 0:00:45]}  e3 {[%clk 0:00:32]} 31. f4 {[%clk 0:00:43]}  Nd2 {[%clk 0:00:29]} 32. Ba2 {[%clk 0:00:36]}  Nf3+ {[%clk 0:00:28]} 33. Kf1 {[%clk 0:00:35]}  Nxe1 {[%clk 0:00:29]} 34. d6 {[%clk 0:00:28]}  Bf8 {[%clk 0:00:30]} 35. Kxe1 {[%clk 0:00:20]}  Kh7 {[%clk 0:00:26]} 36. c7 {[%clk 0:00:18]}  Ra8 {[%clk 0:00:25]} 37. Nxf8+ {[%clk 0:00:14]}  Rfxf8 {[%clk 0:00:26]} 38. d7 {[%clk 0:00:14]}  Rfd8 {[%clk 0:00:26]} 39. cxd8=Q {[%clk 0:00:07]}  Rxd8 {[%clk 0:00:27]} 40. Bf7 {[%clk 0:00:06]}  Kg7 {[%clk 0:00:27]} 41. Be8 {[%clk 0:00:06]}  Kf6 {[%clk 0:00:27]} 42. Rd6+ {[%clk 0:00:07]}  Ke7 {[%clk 0:00:28]} 43. Rxg6 {[%clk 0:00:07]}  Ra8 {[%clk 0:00:26]} 44. Rg5 {[%clk 0:00:07]}  Kd8 {[%clk 0:00:26]} 45. Rxf5 {[%clk 0:00:07]}  a6 {[%clk 0:00:27]} 46. Rxh5 {[%clk 0:00:07]}  b5 {[%clk 0:00:28]} 47. axb5 {[%clk 0:00:07]}  axb5 {[%clk 0:00:28]} 48. Rxb5 {[%clk 0:00:07]}  Ra1+ {[%clk 0:00:29]} 49. Ke2 {[%clk 0:00:07]}  Ra2+ {[%clk 0:00:30]} 50. Kxe3 {[%clk 0:00:07]}  Ra3+ {[%clk 0:00:31]} 51. Kf2 {[%clk 0:00:08]}  Rxg3 {[%clk 0:00:32]} 52. Kxg3 {[%clk 0:00:07]}  Ke7 {[%clk 0:00:32]} 53. Re5+ {[%clk 0:00:08]}  Kd8 {[%clk 0:00:33]} 54. Re4 {[%clk 0:00:08]} 1-0


[Site "https://www.chess.com"]

[Event "Titled Tuesday Blitz May 2 Early 2023"]
[White "Thiel, Thomas"]
[Black "Chirivi C, Jenny Astrid"]
[WhiteFideId "4615964"]
[BlackFideId "4403061"]
[WhiteElo "2234"]
[BlackElo "2001"]
[Result "0-1"]
[Round "04"]
[TimeControl "180+2"]
[Date "2023.05.02"]
[WhiteClock "0:00:23"]
[BlackClock "0:01:36"]

1. e4 {[%clk 0:02:54]}  c5 {[%clk 0:02:58]} 2. Nc3 {[%clk 0:02:49]}  a6 {[%clk 0:02:56]} 3. Nge2 {[%clk 0:02:47]}  e6 {[%clk 0:02:55]} 4. g3 {[%clk 0:02:46]}  d5 {[%clk 0:02:53]} 5. exd5 {[%clk 0:02:44]}  exd5 {[%clk 0:02:53]} 6. d4 {[%clk 0:02:43]}  Nf6 {[%clk 0:02:53]} 7. Bg2 {[%clk 0:02:42]}  Nc6 {[%clk 0:02:53]} 8. Be3 {[%clk 0:02:40]}  c4 {[%clk 0:02:51]} 9. O-O {[%clk 0:02:38]}  Be7 {[%clk 0:02:50]} 10. Bg5 {[%clk 0:02:36]}  Be6 {[%clk 0:02:44]} 11. Nf4 {[%clk 0:02:29]}  O-O {[%clk 0:02:38]} 12. Re1 {[%clk 0:02:26]}  Bg4 {[%clk 0:02:30]} 13. Qd2 {[%clk 0:02:04]}  h6 {[%clk 0:02:28]} 14. Bxf6 {[%clk 0:02:02]}  Bxf6 {[%clk 0:02:28]} 15. h3 {[%clk 0:01:52]}  Bf5 {[%clk 0:02:26]} 16. Ncxd5 {[%clk 0:01:44]}  Bxd4 {[%clk 0:02:20]} 17. c3 {[%clk 0:01:38]}  Bc5 {[%clk 0:02:13]} 18. Rad1 {[%clk 0:01:21]}  Qg5 {[%clk 0:02:01]} 19. h4 {[%clk 0:01:18]}  Qxg3 {[%clk 0:01:58]} 20. Ne7+ {[%clk 0:00:31]}  Nxe7 {[%clk 0:01:53]} 21. Rxe7 {[%clk 0:00:31]}  Qxh4 {[%clk 0:01:49]} 22. Re5 {[%clk 0:00:29]}  Rad8 {[%clk 0:01:47]} 23. Nd5 {[%clk 0:00:23]}  Bg4 {[%clk 0:01:36]} 0-1


[Site "https://www.chess.com"]

[Event "Titled Tuesday Blitz May 2 Early 2023"]
[White "Harriott, Tyrell"]
[Black "Clawitter, Craig"]
[WhiteFideId "2086484"]
[BlackFideId "2023105"]
[WhiteElo "2107"]
[BlackElo "2050"]
[Result "0-1"]
[Round "04"]
[TimeControl "180+2"]
[Date "2023.05.02"]
[WhiteClock "0:00:37"]
[BlackClock "0:00:18"]

1. d4 {[%clk 0:03:00]}  e6 {[%clk 0:02:59]} 2. e3 {[%clk 0:02:58]}  Nf6 {[%clk 0:02:58]} 3. Bd3 {[%clk 0:02:59]}  c5 {[%clk 0:02:58]} 4. f4 {[%clk 0:02:57]}  b6 {[%clk 0:02:52]} 5. Nf3 {[%clk 0:02:56]}  Be7 {[%clk 0:02:51]} 6. O-O {[%clk 0:02:56]}  O-O {[%clk 0:02:51]} 7. Nbd2 {[%clk 0:02:56]}  Ba6 {[%clk 0:02:34]} 8. b3 {[%clk 0:02:54]}  Bxd3 {[%clk 0:02:33]} 9. cxd3 {[%clk 0:02:54]}  cxd4 {[%clk 0:02:28]} 10. Nxd4 {[%clk 0:02:53]}  Nc6 {[%clk 0:02:29]} 11. N4f3 {[%clk 0:02:49]}  Rc8 {[%clk 0:02:22]} 12. Bb2 {[%clk 0:02:49]}  Nb4 {[%clk 0:02:18]} 13. Nc4 {[%clk 0:02:11]}  b5 {[%clk 0:01:54]} 14. Nce5 {[%clk 0:02:08]}  Nc2 {[%clk 0:01:49]} 15. Qe2 {[%clk 0:02:00]}  Nxa1 {[%clk 0:01:45]} 16. Bxa1 {[%clk 0:02:00]}  d6 {[%clk 0:01:41]} 17. Nd4 {[%clk 0:01:28]}  dxe5 {[%clk 0:01:33]} 18. fxe5 {[%clk 0:01:29]}  Nd5 {[%clk 0:01:22]} 19. Nxb5 {[%clk 0:01:28]}  Qb6 {[%clk 0:01:10]} 20. Nd4 {[%clk 0:01:21]}  Bg5 {[%clk 0:00:52]} 21. e4 {[%clk 0:01:12]}  Be3+ {[%clk 0:00:47]} 22. Kh1 {[%clk 0:01:09]}  Bxd4 {[%clk 0:00:47]} 23. Bxd4 {[%clk 0:01:02]}  Qxd4 {[%clk 0:00:46]} 24. exd5 {[%clk 0:01:03]}  Qxd5 {[%clk 0:00:39]} 25. h3 {[%clk 0:01:00]}  Rfd8 {[%clk 0:00:37]} 26. Qf2 {[%clk 0:00:59]}  Rd7 {[%clk 0:00:35]} 27. Rd1 {[%clk 0:00:56]}  Qxe5 {[%clk 0:00:32]} 28. Qh4 {[%clk 0:00:53]}  h6 {[%clk 0:00:28]} 29. Qa4 {[%clk 0:00:52]}  Qd4 {[%clk 0:00:26]} 30. Qa6 {[%clk 0:00:50]}  Rc2 {[%clk 0:00:23]} 31. Qb5 {[%clk 0:00:43]}  Qd5 {[%clk 0:00:23]} 32. Qb8+ {[%clk 0:00:41]}  Kh7 {[%clk 0:00:22]} 33. Qg3 {[%clk 0:00:41]}  Qg5 {[%clk 0:00:20]} 34. Qf3 {[%clk 0:00:40]}  Rd4 {[%clk 0:00:18]} 35. Rg1 {[%clk 0:00:36]}  Rc1 {[%clk 0:00:17]} 36. Qxf7 {[%clk 0:00:31]}  Rxg1+ {[%clk 0:00:16]} 37. Kxg1 {[%clk 0:00:32]}  Rxd3 {[%clk 0:00:15]} 38. Qxe6 {[%clk 0:00:30]}  Qe3+ {[%clk 0:00:15]} 39. Qxe3 {[%clk 0:00:28]}  Rxe3 {[%clk 0:00:16]} 40. Kf2 {[%clk 0:00:29]}  Rc3 {[%clk 0:00:15]} 41. Kg1 {[%clk 0:00:27]}  Rc2 {[%clk 0:00:15]} 42. a4 {[%clk 0:00:28]}  Rb2 {[%clk 0:00:15]} 43. a5 {[%clk 0:00:28]}  Rxb3 {[%clk 0:00:15]} 44. a6 {[%clk 0:00:29]}  Ra3 {[%clk 0:00:15]} 45. Kh2 {[%clk 0:00:30]}  Rxa6 {[%clk 0:00:16]} 46. Kg3 {[%clk 0:00:31]}  Rb6 {[%clk 0:00:16]} 47. Kh2 {[%clk 0:00:32]}  a5 {[%clk 0:00:16]} 48. Kg1 {[%clk 0:00:32]}  a4 {[%clk 0:00:17]} 49. Kf1 {[%clk 0:00:33]}  a3 {[%clk 0:00:17]} 50. Ke1 {[%clk 0:00:34]}  a2 {[%clk 0:00:18]} 51. Kd2 {[%clk 0:00:35]}  a1=Q {[%clk 0:00:18]} 52. Ke2 {[%clk 0:00:36]}  Qa2+ {[%clk 0:00:17]} 53. Kf3 {[%clk 0:00:36]}  Rb3+ {[%clk 0:00:17]} 54. Kg4 {[%clk 0:00:37]}  Qa4+ {[%clk 0:00:17]} 55. Kf5 {[%clk 0:00:36]}  Rb5+ {[%clk 0:00:18]} 56. Ke6 {[%clk 0:00:37]}  Qa6+ {[%clk 0:00:18]} 57. Kd7 {[%clk 0:00:37]}  Rb7+ {[%clk 0:00:18]} 0-1


[Site "https://www.chess.com"]

[Event "Titled Tuesday Blitz May 2 Early 2023"]
[White "Rodriguez Santiago, Jaime"]
[Black "Yonal, Timur"]
[WhiteFideId "3100898"]
[BlackFideId "44115725"]
[WhiteElo "2025"]
[BlackElo "1966"]
[Result "0-1"]
[Round "04"]
[TimeControl "180+2"]
[Date "2023.05.02"]
[WhiteClock "0:00:27"]
[BlackClock "0:00:20"]

1. c4 {[%clk 0:03:00]}  e5 {[%clk 0:02:57]} 2. Nc3 {[%clk 0:03:01]}  Nf6 {[%clk 0:02:57]} 3. g3 {[%clk 0:03:01]}  c6 {[%clk 0:02:56]} 4. Bg2 {[%clk 0:03:02]}  Ke7 {[%clk 0:02:57]} 5. Nf3 {[%clk 0:03:01]}  d6 {[%clk 0:02:47]} 6. O-O {[%clk 0:02:58]}  g6 {[%clk 0:02:46]} 7. d4 {[%clk 0:02:58]}  e4 {[%clk 0:02:40]} 8. Nd2 {[%clk 0:02:56]}  d5 {[%clk 0:02:31]} 9. cxd5 {[%clk 0:02:56]}  cxd5 {[%clk 0:02:31]} 10. b3 {[%clk 0:02:54]}  Be6 {[%clk 0:02:25]} 11. Na4 {[%clk 0:02:37]}  b6 {[%clk 0:02:21]} 12. Bb2 {[%clk 0:02:27]}  Nc6 {[%clk 0:02:18]} 13. Rc1 {[%clk 0:02:26]}  Kd7 {[%clk 0:02:19]} 14. e3 {[%clk 0:02:22]}  Bd6 {[%clk 0:02:16]} 15. Nb1 {[%clk 0:02:20]}  Rc8 {[%clk 0:02:14]} 16. Nbc3 {[%clk 0:02:19]}  Kc7 {[%clk 0:02:11]} 17. Nb5+ {[%clk 0:02:18]}  Kb7 {[%clk 0:02:11]} 18. Nxd6+ {[%clk 0:02:15]}  Qxd6 {[%clk 0:02:11]} 19. Nc3 {[%clk 0:02:15]}  a6 {[%clk 0:02:07]} 20. Qe2 {[%clk 0:02:12]}  Nd7 {[%clk 0:02:07]} 21. Na4 {[%clk 0:02:09]}  f5 {[%clk 0:02:04]} 22. Rfd1 {[%clk 0:02:02]}  Ka7 {[%clk 0:02:00]} 23. Bf1 {[%clk 0:02:02]}  Ndb8 {[%clk 0:01:58]} 24. a3 {[%clk 0:01:56]}  h5 {[%clk 0:01:57]} 25. h4 {[%clk 0:01:54]}  g5 {[%clk 0:01:56]} 26. f4 {[%clk 0:01:38]}  exf3 {[%clk 0:01:48]} 27. Qxf3 {[%clk 0:01:37]}  gxh4 {[%clk 0:01:45]} 28. gxh4 {[%clk 0:01:37]}  Rhg8+ {[%clk 0:01:45]} 29. Kh1 {[%clk 0:01:36]}  Rg4 {[%clk 0:01:45]} 30. Bg2 {[%clk 0:01:11]}  Rxh4+ {[%clk 0:01:43]} 31. Kg1 {[%clk 0:01:11]}  f4 {[%clk 0:01:18]} 32. e4 {[%clk 0:01:06]}  Rg8 {[%clk 0:01:05]} 33. e5 {[%clk 0:01:01]}  Qe7 {[%clk 0:01:00]} 34. Kf1 {[%clk 0:00:46]}  Rg3 {[%clk 0:00:56]} 35. Qc3 {[%clk 0:00:42]}  Rxc3 {[%clk 0:00:46]} 36. Nxc3 {[%clk 0:00:42]}  Qg5 {[%clk 0:00:42]} 37. Rc2 {[%clk 0:00:41]}  Qg3 {[%clk 0:00:24]} 38. Rf2 {[%clk 0:00:39]}  Bg4 {[%clk 0:00:19]} 39. Ne2 {[%clk 0:00:33]}  Qxb3 {[%clk 0:00:18]} 40. Rb1 {[%clk 0:00:30]}  f3 {[%clk 0:00:18]} 41. Nc1 {[%clk 0:00:27]}  fxg2+ {[%clk 0:00:19]} 42. Kxg2 {[%clk 0:00:28]}  Qh3+ {[%clk 0:00:19]} 43. Kg1 {[%clk 0:00:27]}  Qh1# {[%clk 0:00:20]} 0-1


[Site "https://www.chess.com"]

[Event "Titled Tuesday Blitz May 2 Early 2023"]
[White "Acikel, Mert"]
[Black "Fathy, Elameir"]
[WhiteFideId "12956465"]
[BlackFideId "10600396"]
[WhiteElo "2097"]
[BlackElo "2311"]
[Result "0-1"]
[Round "04"]
[TimeControl "180+2"]
[Date "2023.05.02"]
[WhiteClock "0:00:02"]
[BlackClock "0:00:18"]

1. e4 {[%clk 0:02:58]}  c6 {[%clk 0:02:54]} 2. Nc3 {[%clk 0:02:57]}  d5 {[%clk 0:02:55]} 3. Nf3 {[%clk 0:02:57]}  Bg4 {[%clk 0:02:54]} 4. h3 {[%clk 0:02:57]}  Bxf3 {[%clk 0:02:55]} 5. Qxf3 {[%clk 0:02:56]}  e6 {[%clk 0:02:55]} 6. Be2 {[%clk 0:02:57]}  Bc5 {[%clk 0:02:53]} 7. O-O {[%clk 0:02:51]}  Nd7 {[%clk 0:02:49]} 8. Qg3 {[%clk 0:02:50]}  Bd4 {[%clk 0:02:48]} 9. Nd1 {[%clk 0:02:49]}  dxe4 {[%clk 0:02:24]} 10. c3 {[%clk 0:02:30]}  Be5 {[%clk 0:02:21]} 11. Qe3 {[%clk 0:02:28]}  Ngf6 {[%clk 0:02:17]} 12. d4 {[%clk 0:02:04]}  exd3 {[%clk 0:02:08]} 13. Bxd3 {[%clk 0:02:05]}  O-O {[%clk 0:02:06]} 14. Qf3 {[%clk 0:01:59]}  h6 {[%clk 0:02:02]} 15. Bc2 {[%clk 0:01:59]}  Qc7 {[%clk 0:01:58]} 16. Ne3 {[%clk 0:01:56]}  Bd6 {[%clk 0:01:55]} 17. Nc4 {[%clk 0:01:50]}  Be7 {[%clk 0:01:38]} 18. Bf4 {[%clk 0:01:48]}  e5 {[%clk 0:01:33]} 19. Bg3 {[%clk 0:01:48]}  b5 {[%clk 0:01:31]} 20. Ne3 {[%clk 0:01:45]}  g6 {[%clk 0:01:27]} 21. Rad1 {[%clk 0:01:44]}  Rad8 {[%clk 0:01:26]} 22. Rfe1 {[%clk 0:01:43]}  Rfe8 {[%clk 0:01:24]} 23. Ng4 {[%clk 0:01:33]}  Nxg4 {[%clk 0:01:24]} 24. hxg4 {[%clk 0:01:33]}  Bf8 {[%clk 0:01:16]} 25. Be4 {[%clk 0:01:34]}  c5 {[%clk 0:01:11]} 26. Bc6 {[%clk 0:01:28]}  a6 {[%clk 0:00:56]} 27. Bxd7 {[%clk 0:00:46]}  Rxd7 {[%clk 0:00:57]} 28. Rxd7 {[%clk 0:00:47]}  Qxd7 {[%clk 0:00:58]} 29. Rxe5 {[%clk 0:00:47]}  Rxe5 {[%clk 0:00:56]} 30. Bxe5 {[%clk 0:00:48]}  Bg7 {[%clk 0:00:50]} 31. Bxg7 {[%clk 0:00:43]}  Kxg7 {[%clk 0:00:51]} 32. Qe2 {[%clk 0:00:44]}  c4 {[%clk 0:00:50]} 33. g3 {[%clk 0:00:41]}  Qd5 {[%clk 0:00:45]} 34. Kh2 {[%clk 0:00:40]}  Kh7 {[%clk 0:00:42]} 35. Qe7 {[%clk 0:00:36]}  Qf3 {[%clk 0:00:36]} 36. Qa7 {[%clk 0:00:33]}  Kg7 {[%clk 0:00:32]} 37. Kg1 {[%clk 0:00:33]}  Qd1+ {[%clk 0:00:30]} 38. Kh2 {[%clk 0:00:33]}  Qf3 {[%clk 0:00:25]} 39. Kg1 {[%clk 0:00:32]}  Qxg4 {[%clk 0:00:20]} 40. Qxa6 {[%clk 0:00:25]}  Qd1+ {[%clk 0:00:20]} 41. Kg2 {[%clk 0:00:25]}  Qd5+ {[%clk 0:00:20]} 42. Kg1 {[%clk 0:00:25]}  h5 {[%clk 0:00:21]} 43. Qa7 {[%clk 0:00:19]}  Qd1+ {[%clk 0:00:21]} 44. Kg2 {[%clk 0:00:19]}  Qd2 {[%clk 0:00:20]} 45. Qd4+ {[%clk 0:00:14]}  Qxd4 {[%clk 0:00:20]} 46. cxd4 {[%clk 0:00:15]}  Kf6 {[%clk 0:00:18]} 47. Kf3 {[%clk 0:00:03]}  Kf5 {[%clk 0:00:18]} 48. Ke3 {[%clk 0:00:02]}  g5 {[%clk 0:00:18]} 0-1


[Site "https://www.chess.com"]